Cogmind - Beta 16.1 @@@ ROGUE MODE // 2026.03.07 @ 01:50:19 Player: Doglevel Result: Destroyed by Y-45 Defender with Heavy Assault Rifle Performance ------------- Evolutions (1) 500 Regions Visited (4) 800 Robots Destroyed (34) 170 Value Destroyed (1054) 1054 Prototype IDs (1) 20 Alien Tech Used (0) 0 Bonus (83) 83 TOTAL SCORE: 2627 Bonus ------- Follower Combat Kills 83 Cogmind --------- Core Integrity 0/400 Matter 290/300 Energy 88/100 System Corruption 0% Temperature Hot (289) Movement Walking (120) Location -9/Storage Parts ------- > --- POWER (1) -------- (None) > --- PROPULSION (2) --- Aluminum Leg > --- UTILITY (3) ------ (None) > --- WEAPON (3) ------- (None) > --- INVENTORY (5) ---- (None) Peak State ------------ > --- POWER ------------ Improved Ion Engine > --- PROPULSION ------- Aluminum Leg Aluminum Leg > --- UTILITY ---------- Heat Sink Small Storage Unit Medium Matter Pod > --- WEAPON ----------- Small Laser Beam Rifle Rocket Launcher > --- INVENTORY -------- Improved Ion Engine Improved Ion Engine Light Armor Plating Spread Laser Heavy Particle Gun Assault Rifle Light Assault Rifle Improved Datajack [Rating: 13] Favorites ----------- Power Improved Ion Engine Engine Improved Ion Engine Propulsion Aluminum Leg Treads Light Treads Leg Aluminum Leg Utility Small Storage Unit Device Heat Sink Storage Small Storage Unit Protection Light Armor Plating Weapon Assault Rifle Energy Gun Small Laser Ballistic Gun Assault Rifle Ballistic Cannon Improved Light Cannon Launcher Rocket Launcher Special Melee Weapon Improved Datajack Build | -11 -10 -10 -9 -9 ------- Run | Yrd Mat Min Mat Sto Slots Evolved 2 | . . . 2 . Power . | . . . . . Propulsion . | . . . . . Utility 1 | . . . 1 . Weapon 1 | . . . 1 . Parts Attached 33 | 6 10 . 4 13 Power 7 | 1 3 . 1 2 Engine 7 | 1 3 . 1 2 Core . | . . . . . Reactor . | . . . . . Propulsion 10 | 2 5 . . 3 Treads 3 | 2 1 . . . Leg 7 | . 4 . . 3 Wheel . | . . . . . Hover . | . . . . . Flight . | . . . . . Utility 4 | 1 1 . 1 1 Device 1 | . . . 1 . Storage 2 | 1 1 . . . Processor . | . . . . . Hackware . | . . . . . Protection 1 | . . . . 1 Artifact . | . . . . . Weapon 12 | 2 1 . 2 7 Energy Gun 6 | 1 . . 2 3 Energy Cannon . | . . . . . Ballistic Gun 3 | 1 1 . . 1 Ballistic Cannon 1 | . . . . 1 Launcher 1 | . . . . 1 Special Weapon . | . . . . . Impact Weapon . | . . . . . Slashing Weapon . | . . . . . Piercing Weapon . | . . . . . Special Melee Weapon 1 | . . . . 1 Unidentified Prototypes 1 | . . . . 1 Parts Lost 22 | . 5 . . 17 Power 4 | . 2 . . 2 Propulsion 4 | . 1 . . 3 Utility 4 | . . . . 4 Weapon 10 | . 2 . . 8 Highest Loss Streak 12 | . 2 . . 12 To Critical Strikes . | . . . . . Average Backups 5 | 2 5 8 6 6 Power 1 | . . 1 1 1 Propulsion 1 | 1 2 3 1 . Utility . | . . 1 . . Weapon 2 | . 1 3 2 3 Tool/Special . | . . . . . Unused Backups . | . . . . . Power . | . . . . . Propulsion . | . . . . . Utility . | . . . . . Weapon . | . . . . . Tool/Special . | . . . . . Average Slot Usage (%) 88 | . 89 85 98 83 Engine 11 | . 13 14 11 11 Treads 6 | . 20 . . . Leg 14 | . 7 28 22 16 Device 4 | . . . 11 4 Storage 18 | . 20 28 22 15 Protection 2 | . . . . 4 Energy Gun 15 | . 12 . 20 15 Ballistic Gun 10 | . 14 14 11 8 Launcher 2 | . . . . 5 Peak Build Rating 13 | 6 7 6 11 13 Average Rating 8 | 4 6 6 10 10 On Entrance 5 | . 6 6 6 11 Avg Prop Armor Cover (%) . | . . . . . Naked Turns 1 | . . . . 1 Heaviest Build 26 | 14 16 14 19 26 Greatest Support 40 | 40 40 20 20 20 Greatest Overweight (x) 8 | 4 . . . 8 Average Overweight (x) . | 1 . . . . Largest Inventory Capacity 8 | 8 8 8 8 8 Average Capacity 7 | 7 8 8 8 7 Most Carried 8 | 4 8 8 8 8 Average Carried 6 | 2 5 8 5 6 Final Capacity 8 | 8 8 8 8 5 Final Carried 8 | 4 8 8 8 . Class Distribution -------------------- 42% | Mutant 34% | Scavenger-Gunner 16% | Scavenger-Tank 4% | Tank Dominant Class ---------------- Mutant | -10/Materials Mutant | -10/Mines Scavenger-Gunner | -9/Materials Scavenger-Tank | -9/Storage Resources | -11 -10 -10 -9 -9 ----------- Run | Yrd Mat Min Mat Sto Matter Collected 928 | 216 307 . . 405 Remotely . | . . . . . Salvage Created 971 | . 355 . . 616 Parts 75 | . 24 . . 51 Haulers Intercepted . | . . . . . Recyclers Shooed . | . . . . . Parts Field Recycled . | . . . . . Retrieved Matter . | . . . . . Parts Self-Destructed . | . . . . . Prevented . | . . . . . Parts Restored . | . . . . . Kills | -11 -10 -10 -9 -9 ------- Run | Yrd Mat Min Mat Sto Combat Hostiles Destroyed 28 | . 11 . . 17 Guns 16 | . 11 . . 5 Cannons 1 | . . . . 1 AOE 11 | . . . . 11 Classes Destroyed 9 | . 2 . . 7 Worker 1 | . . . . 1 Builder 2 | . . . . 2 Operator 1 | . . . . 1 Watcher 2 | . . . . 2 Swarmer 3 | . 3 . . . Grunt 18 | . 8 . . 10 Duelist 3 | . . . . 3 Protector 2 | . . . . 2 Sentry 2 | . . . . 2 Best Kill Streak 8 | . 4 . . 8 Combat Bots Only 7 | . 4 . . 7 Max Kills in Single Turn 4 | . 1 . . 4 Gunslinging . | . . . . . Exploded 4 | . . . . 4 Melee . | . . . . . Uniques/NPCs Destroyed . | . . . . . Combat | -11 -10 -10 -9 -9 -------- Run | Yrd Mat Min Mat Sto Hostile Shots Fired 291 | . 131 . . 160 Missed 76 | . 34 . . 42 Hits 215 | . 97 . . 118 Melee 6 | . . . . 6 Projectile 209 | . 97 . . 112 Critical Strikes 8 | . 1 . . 7 Damage Taken 2750 | . 982 . . 1768 Core 554 | . 143 . . 411 Absorbed by Shields . | . . . . . Core Remaining (%) 71 | 100 . 42 . . Volleys Fired 87 | . 39 . 2 46 Largest 3 | . 2 . 3 3 Hottest 140 | . 70 . 100 140 Shots Fired 170 | . 70 . 6 94 Gun 153 | . 70 . 6 77 Cannon 10 | . . . . 10 Launcher 7 | . . . . 7 Special . | . . . . . Kinetic 84 | . 39 . 2 43 Thermal 79 | . 31 . 4 44 Explosive 7 | . . . . 7 Electromagnetic . | . . . . . Robot Hit Streak 11 | . 8 . 3 11 Robot Miss Streak 5 | . 4 . 1 5 Penetration Max . | . . . . . Secondary Targets 6 | . 3 . . 3 Max Gunslinging Chain 1 | . 1 . . 1 Shots Hit Robots 106 | . 41 . 4 61 Core Hits 70 | . 19 . 1 50 Critical Kills . | . . . . . Critical Parts Destroyed . | . . . . . Critical Strikes 8 | . 7 . . 1 Burn 7 | . 7 . . . Blast 1 | . . . . 1 Melee Attacks 2 | . . . . 2 Impact . | . . . . . Slashing . | . . . . . Piercing . | . . . . . Sneak Attacks . | . . . . . Combat Hostiles . | . . . . . Follow-up Attacks . | . . . . . Damage Inflicted 2483 | . 531 . 48 1904 Guns 1262 | . 523 . 48 691 Cannons 154 | . . . . 154 Explosions 1059 | . . . . 1059 Melee . | . . . . . Ramming 8 | . 8 . . . Kinetic 745 | . 297 . 15 433 Thermal 671 | . 226 . 33 412 Explosive 1059 | . . . . 1059 Electromagnetic . | . . . . . Impact . | . . . . . Slashing . | . . . . . Piercing . | . . . . . Highest Corruption . | . . . . . Average Corruption . | . . . . . Corruption Purged . | . . . . . Corruption Blocked . | . . . . . Overload Shots . | . . . . . Overflow Damage 19 | . . . . 19 Projectiles . | . . . . . Explosions 19 | . . . . 19 Melee . | . . . . . Knockbacks 2 | . . . . 2 Impact . | . . . . . Kinetic 2 | . . . . 2 Secondary . | . . . . . Self-Inflicted Damage 76 | . . . . 76 Shots 2 | . . . . 2 Rammed . | . . . . . Targets Rammed 3 | . 3 . . . Kicked 3 | . 3 . . . Crushed . | . . . . . Highest Temperature 433 | . 174 . 3 433 Average Temperature 113 | . 76 . 2 149 Received Heat Transfer 1134 | . 390 . . 744 Effects 4 | . . . . 4 Energy Bleed 2 | . . . . 2 Matter Decay 1 | . . . . 1 Damage (major) 1 | . . . . 1 Siege Activations . | . . . . . Martial Activations . | . . . . . Shielding Activations . | . . . . . Robots Disrupted . | . . . . . Combat Hostiles . | . . . . . Robots Corrupted . | . . . . . Combat Hostiles . | . . . . . Parts Fried . | . . . . . Impact Corruptions . | . . . . . Robots Melted . | . . . . . Combat Hostiles . | . . . . . Parts Melted 6 | . 6 . . . Heat Transferred 2063 | . 1184 . 75 804 Parts Sabotaged . | . . . . . Parts Stolen . | . . . . . Parts Stripped . | . . . . . Power Chain Reactions . | . . . . . Alert | -11 -10 -10 -9 -9 ------- Run | Yrd Mat Min Mat Sto Maximum Alert Level 1 | . . . . 1 Low Security (%) 83 | 100 100 100 100 61 Level 1 16 | . . . . 38 Level 2 . | . . . . . Level 3 . | . . . . . Level 4 . | . . . . . Level 5 . | . . . . . High Security . | . . . . . Max Security . | . . . . . Peak Influence 274 | . 140 50 15 274 Initial 50 | . . 50 15 . Average 76 | . 59 49 1 133 Influence Increases 858 | . 270 . . 588 Destroy 0b10 Robot/C 580 | . 220 . . 360 Destroy 0b10 Robot/NC 40 | . . . . 40 Destroy Leader 134 | . 50 . . 84 Allied During Kill 16 | . . . . 16 Disable Machine 30 | . . . . 30 Destroy Structure 58 | . . . . 58 Influence Decreases 661 | . 140 90 40 391 Entered New Map 105 | . . 80 25 . Time Decay 296 | . 90 10 15 181 Lost Part 220 | . 50 . . 170 Lost Ally 40 | . . . . 40 Squads Dispatched 7 | . 3 . 1 3 Investigation 1 | . 1 . . . Extermination . | . . . . . Reinforcement 4 | . 2 . 1 1 Assault 2 | . . . . 2 Garrison . | . . . . . Intercept . | . . . . . Searches Triggered . | . . . . . Construction Impeded . | . . . . . Haulers Reinforced . | . . . . . Active Scanning Responses . | . . . . . Cargo Convoy Interrupts . | . . . . . Stealth | -11 -10 -10 -9 -9 --------- Run | Yrd Mat Min Mat Sto Distress Signals 7 | . 1 . . 6 Communications Jammed . | . . . . . Distress Signals . | . . . . . Times Spotted 45 | . 14 . 1 30 Peak Tracking Total 10 | . 4 . 1 10 Tactical Retreats . | . . . . . Traps | -11 -10 -10 -9 -9 ------- Run | Yrd Mat Min Mat Sto Traps Triggered 3 | . 1 . . 2 Indirectly . | . . . . . Trap Hack Attempts . | . . . . . Triggered . | . . . . . Disarmed . | . . . . . Reprogrammed . | . . . . . Reused . | . . . . . Traps Extracted . | . . . . . Installed . | . . . . . Triggered . | . . . . . Machines | -11 -10 -10 -9 -9 ---------- Run | Yrd Mat Min Mat Sto Machines Disabled 2 | . . . . 2 Max in Single Turn 1 | . . . . 1 Machines Repaired . | . . . . . Machines Dismantled . | . . . . . Machines Sabotaged . | . . . . . Overloaded Fab Kills . | . . . . . Hacking | -11 -10 -10 -9 -9 --------- Run | Yrd Mat Min Mat Sto Machines Accessed 1 | . . . . 1 Terminals 1 | . . . . 1 Fabricators . | . . . . . Repair Stations . | . . . . . Recycling Units . | . . . . . Scanalyzers . | . . . . . Garrison Access . | . . . . . Total Hacks 1 | . . . . 1 Successful . | . . . . . Failed 1 | . . . . 1 Catastrophic . | . . . . . Database Lockouts . | . . . . . Manual . | . . . . . Terminals 1 | . . . . 1 Fabricators . | . . . . . Repair Stations . | . . . . . Recycling Units . | . . . . . Scanalyzers . | . . . . . Garrison Access . | . . . . . Terminal Hacks . | . . . . . Fabricator Hacks . | . . . . . Repair Station Hacks . | . . . . . Recycling Unit Hacks . | . . . . . Scanalyzer . | . . . . . Garrison Access Hacks . | . . . . . Unauthorized Hacks . | . . . . . Terminals . | . . . . . Fabricators . | . . . . . Repair Stations . | . . . . . Recycling Units . | . . . . . Scanalyzers . | . . . . . Garrison Access . | . . . . . Data Cores Recovered . | . . . . . Used . | . . . . . Hacking Detections 1 | . . . . 1 Full Trace Events . | . . . . . Feedback Events . | . . . . . Feedback Blocked . | . . . . . Robot Schematics Acquired . | . . . . . Robots Built . | . . . . . Authchips . | . . . . . Time . | . . . . . Total Robot Build Rating . | . . . . . Part Schematics Acquired . | . . . . . Parts Built . | . . . . . Authchips . | . . . . . Time . | . . . . . Total Part Build Rating . | . . . . . Part Studies Acquired . | . . . . . Parts Repaired . | . . . . . Time . | . . . . . Parts Recycled . | . . . . . Recycled Matter . | . . . . . Retrieved Matter . | . . . . . Retrieved Components . | . . . . . Parts Scanalyzed . | . . . . . Part Schematics Acquired . | . . . . . Parts Damaged . | . . . . . Bothacking | -11 -10 -10 -9 -9 ------------ Run | Yrd Mat Min Mat Sto Used RIF Installer . | . . . . . Robots Hacked 1 | . . . . 1 Non-combat . | . . . . . Combat 1 | . . . . 1 Robot Hacks Applied 1 | . . . . 1 parse_system 1 | . . . . 1 Relay Couplers Released . | . . . . . Fabnet Peak Effective % . | . . . . . Robots Rewired . | . . . . . Allies Hacked . | . . . . . Hacks Repelled . | . . . . . Allies | -11 -10 -10 -9 -9 -------- Run | Yrd Mat Min Mat Sto Total Allies 2 | . . . . 2 Largest Group 2 | . . . . 2 Highest-Rated Group 62 | . . . . 62 Highest-Rated Ally 31 | . . . . 31 Total Orders . | . . . . . Ally Attacks 18 | . . . . 18 Total Damage 249 | . . . . 249 Kills 3 | . . . . 3 Allies Corrupted . | . . . . . Allies Melted . | . . . . . Intel | -11 -10 -10 -9 -9 ------- Run | Yrd Mat Min Mat Sto Active Infowar (turns) . | . . . . . Robot Analysis Total . | . . . . . Derelict Logs Recovered . | . . . . . Drone Launches . | . . . . . Drone Recoveries . | . . . . . Exploration | -11 -10 -10 -9 -9 ------------- Run | Yrd Mat Min Mat Sto Turns Passed 1033 | 74 298 21 195 445 Spaces Moved 477 | 37 104 17 147 172 Core 29 | 17 . . . 12 Treads 108 | 20 88 . . . Legs 340 | . 16 17 147 160 Wheels . | . . . . . Hover . | . . . . . Flight . | . . . . . Fastest Speed 50 | 50 120 120 120 50 Average Speed 147 | 166 153 120 120 166 Slowest Speed 450 | 250 160 120 120 450 Overloaded Moves . | . . . . . Propulsion Burnouts . | . . . . . Robots Hopped . | . . . . . Potential Cave-ins . | . . . . . Cave-ins Triggered . | . . . . . Exploration Rate (%) 17 | 3 20 7 14 45 Regions Visited 4 Branch Regions 2 Pre-discovered Areas . | . . . . . Known Exits Taken . | . . . . . Unknown Exits Taken 4 | 1 1 1 1 . Scrap Searched . | . . . . . Spaces Dug . | . . . . . Terrain Destroyed 53 | . . . . 53 Melee . | . . . . . Projectile . | . . . . . AOE 53 | . . . . 53 Terrain Rammed . | . . . . . Walls Destroyed . | . . . . . Machines Disabled . | . . . . . Actions | -11 -10 -10 -9 -9 --------- Run | Yrd Mat Min Mat Sto Total 645 | 47 169 17 162 250 Wait 15 | . 7 1 . 7 Move 473 | 36 103 16 146 172 Hop . | . . . . . Pick Up 19 | 5 6 . 6 2 Fast Attach 12 | 5 2 . . 5 Attach 16 | 1 4 . 3 8 Detach . | . . . . . Swap 9 | . 4 . 1 4 Drop 9 | . 1 . 4 4 Fire 87 | . 39 . 2 46 Melee 2 | . . . . 2 Ram . | . . . . . Kick 3 | . 3 . . . Crush . | . . . . . Escape Stasis . | . . . . . Rewire . | . . . . . Trap . | . . . . . Miscellaneous . | . . . . . Route ------- -11/Scrapyard -10/Materials -10/Mines -9/Materials -9/Storage History --------- Turn | Location | Event 20 | -11/Scrapyard | Discovered new exit (range 16) 75 | -11/Scrapyard | Entered Materials 300 | -10/Materials | Discovered new exit (range 8) 313 | -10/Materials | Core integrity fell below 50% 317 | -10/Materials | Build established: Mutant 373 | -10/Materials | Entered Mines 375 | -10/Mines | Met a Derelict bent on vengeance 383 | -10/Mines | Discovered new exit (range 8) 394 | -10/Mines | Entered Materials 394 | -9/Materials | Evolved 2 slots: Utility x1, Weapon x1 570 | -9/Materials | Discovered new exit (range 9) 589 | -9/Materials | Entered Storage 652 | -9/Storage | Met a pair of Derelict thieves 794 | -9/Storage | Destroyed 7 combat bots 804 | -9/Storage | Lost 3 parts (1n2u) 1009 | -9/Storage | Core integrity fell below 50% 1026 | -9/Storage | Core integrity fell below 20% 1034 | -9/Storage | Destroyed by Y-45 Defender with Heavy Assault Rifle Last Messages --------------- Acquired 32 matter. Overheating: Matter decay (-38). Lgt. Assault Rifle destroyed. Sml. Laser destroyed. Overheating: Sml. Storage Unit damaged (-32). K-01 Serf collects debris. Jacked Y-45 Defender... >>parse_system Reading system data... K-01 Serf collects debris. Y-45 Defender destroyed. Acquired 45 matter. K-01 Serf collects debris. Sml. Storage Unit destroyed. Critical hit (Burn: +37). Imp. Ion Engine destroyed. Imp. Datajack destroyed. K-01 Serf collects debris. Acquired Aluminum Leg. K-01 Serf collects debris. Map ----- +----------------------------------------------------+ | [* | ### [##[ ! ###?????? | | * *%= # % # #???????? | | # = = # ###########???????? | | # """ """ + #???????????????????? | | # """ """ # #???????????????????? | | # """ """ # #???????????????????? | | # ## ##???????????????????? | | ######## ### ###??????????????????? | | ???????##### #T#??????????????????? | | ??????????#" " "??????????????????? | | ??????????#T ###??????????????????? | | ??????????#" #????????????????????? | | ??????????## #????????????????????? | | ???????????# #????????????????????? | | ?????????### ##??##???????????????? | | ?????????# # #### #####???????????? | | ?########### #!! #???????????? | | # [ # #%""" #???????????? | | ?# # # """ #???????????? | | ?# # r# """ #???????????? | | ?# k k +% #???????????? | | ?# """ """ #Y=*#% "" #???????????? | | ?? """ """ #[k[#= "" #???????????? | | ????"" """ #*=k# """ #???????????? | | ???? # %!# #???????????? | | ?????#######@g*##########???????????? | | ???????????#=!%#????????????????????? | | ???????????#=*[#????????????????????? | | ???????????# Yg#????????????????????? | | ???????????#a #????????????????????? | | ???????????a +????????????????????? | | ???????????# #????????????????????? | | ???????????# #????????????????????? | | ???????????# #????????????????????? | | ???????????#% #????????????????????? | | ???????????# #????????????????????? | | ??????????? a????????????????????? | | ??????????? ????????????????????? | | ??????????? ????????????????????? | | ???????????#####????????????????????? | | ????????????????????????????????????? | | ????????????????????????????????????? | | ????????????????????????????????????? | | ????????????????????????????????????? | | ????????????????????????????????????? | | ????????????????????????????????????? | | ????????????????????????????????????? | | | | | | | +----------------------------------------------------+ Best States ------------- Heat Dissipation 38 Energy Generation 12 Energy Capacity 265 Matter Stores 400 Matter Capacity 400 Sight Range 16 Terrain Scan Density 10 Armor Coverage 150 Evasion (%) 55 Recoil Reduction 2 Item Schematics ----------------- None Robot Schematics ------------------ None Fabricated ------------ Nothing Repaired ---------- Nothing Studied --------- None Alien Tech Used ----------------- None Achievements -------------- None Challenges ------------ None Game ------ Seed ProcessingBottomlessAirjet Manual? 0 Play Time 00:22:16 Cumulative 16.0 hours Start 2026.03.05 @ 15:37:18 End 2026.03.07 @ 01:50:19 Sessions 2 Manual Loads 0 Difficulty Rogue Special Mode None Game No. 17 Rogue 17 Adventurer 0 Explorer 0 Win Type - Total 0 Types 0/0/0/0/0/0/0/0/0/0 Lore% 9 Gallery% 14 Achievement% 13 Wizard Run 0 Options --------- Layout 1 ASCII 0 Keyboard 0 Movement Mouse Keybinds 0 Fullscreen 1 Font 32/Tamsyn Map View 25x20 Zoom Use 94% Tactical HUD 0 Map Filters NONE Filters LOW_CONTRAST(13,24,33) Steam 1 RUN: b66d5e59-93f8-4a65-9c13-c40ef316bc61